fUST/lending_fUST_20250723
["ID","MTS","AMOUNT","RATE_DAILY","PERIOD"]
[374341084,1753276265658,-199.3240378,0.0002192,4]
[374341086,1753276265668,-199.32,0.0002192,4]
[374341088,1753276265677,-500.91301163,0.00021973,2]
[374341090,1753276265686,-500.0,0.00021973,2]
[374341092,1753276265695,-500.0,0.00021973,2]
[374341094,1753276265705,-500.0,0.00021973,2]
[374341096,1753276265717,-163.98697154,0.00021973,2]
[374341098,1753276265726,-500.0,0.00021973,2]
[374341100,1753276265735,-500.0,0.00021973,2]
[374341102,1753276265744,-500.0,0.00021973,2]
[374341104,1753276265754,-500.0,0.00021973,2]
[374341106,1753276265764,-500.55543963,0.00021973,2]
[374341108,1753276265773,-500.0,0.00021973,2]
[374341110,1753276265783,-500.0,0.00021973,2]
[374341112,1753276265793,-500.0,0.00021973,2]
[374341113,1753276265802,-500.0,0.00021973,2]
[374341115,1753276265812,-500.0,0.00021973,2]
[374341117,1753276265822,-500.0,0.00021973,2]
[374341119,1753276265831,-500.0,0.00021973,2]
[374341121,1753276265841,-500.0,0.00021973,2]
[374341123,1753276265851,-500.0,0.00021973,2]
[374341125,1753276265861,-500.0,0.00021973,2]
[374341127,1753276265871,-550.14382085,0.00021973,2]
[374341129,1753276265882,-500.0,0.00021973,2]
[374341131,1753276265892,-336.86959081,0.00021973,2]
[374341133,1753276265903,-472.58471755,0.00021973,2]
[374341135,1753276265914,-152.467607,0.00021973,7]
[374341137,1753276265924,-151.0,0.00021973,7]
[374341139,1753276265933,-2000.000001,0.0002199,2]
[374341141,1753276265943,-151.0,0.00022,6]
[374341143,1753276265954,-1517.45,0.00022,7]
[374341146,1753276265967,-15872.61,0.00022,7]
[374341147,1753276265977,-3314.91,0.00022,7]
[374341149,1753276265989,-66727.83,0.00022,2]
[374341151,1753276265999,-151.0,0.00022,7]
[374341153,1753276266009,-447.903309,0.00022,7]
[374341155,1753276266020,-447.903309,0.00022,7]
[374341158,1753276266030,-151.0,0.00022,7]
[374341159,1753276266040,-160.0,0.00022,7]
[374341161,1753276266049,-167.0,0.00022,2]
[374341163,1753276266059,-393.474539,0.00022,3]
[374341166,1753276266070,-358.499025,0.00022,3]
[374341167,1753276266080,-393.474539,0.00022,2]
[374341170,1753276266091,-358.499025,0.00022,2]
[374341171,1753276266100,-151.0,0.00022,7]
[374341173,1753276266110,-151.0,0.00022,7]
[374341175,1753276266120,-214.67886746,0.00022,7]
[374341177,1753276266130,-476.696448,0.00022,7]
[374341179,1753276266139,-160.0,0.00022,7]
[374341181,1753276266149,-12622.36869388,0.00022,7]
[374341183,1753276266160,-272.0,0.00022,2]
[374341185,1753276266170,-175.014685,0.00022,7]
[374341187,1753276266181,-560.0,0.00022095,2]
[374341189,1753276266191,-5284.9,0.00022101,5]
[374341191,1753276266201,-500.0,0.00022164,2]
[374341195,1753276266226,-1380.96517336,0.00022164,2]
[374341197,1753276266237,-3432.7107726,0.00022179,2]
[374341199,1753276266247,-6770.1,0.00022191,2]
[374341201,1753276266257,-460.0,0.00022191,2]
[374341203,1753276266268,-151.0,0.00022191,7]
[374341205,1753276266278,-151.0,0.00022191,7]
[374341207,1753276266288,-151.0,0.00022191,7]
[374341209,1753276266299,-460.0,0.00022191,2]
[374341211,1753276266308,-151.0,0.00022191,7]
[374341213,1753276266319,-195.283098,0.00022191,7]
[374341215,1753276266328,-718.85,0.00022191,2]
[374341217,1753276266339,-555.41,0.00022191,2]
[374341219,1753276266349,-576.88,0.00022191,2]
[374341221,1753276266359,-460.0,0.00022191,2]
[374341223,1753276266368,-500.0,0.00022191,2]
[374341225,1753276266379,-151.0,0.00022191,7]
[374341227,1753276266389,-1759.05,0.00022191,2]
[374341229,1753276266399,-151.68,0.00022191,2]
[374341231,1753276266409,-460.0,0.00022191,2]
[374341233,1753276266419,-515.91,0.00022191,2]
[374341235,1753276266429,-352.85766504,0.00022191,2]
[374341237,1753276266439,-460.0,0.00022191,2]
[374341239,1753276266449,-195.74,0.00022191,2]
[374341241,1753276266459,-460.0,0.00022191,2]
[374341243,1753276266469,-764.96,0.00022191,2]
[374341245,1753276266480,-710.55,0.00022191,2]
[374341247,1753276266490,-226.66677,0.00022191,7]
[374341249,1753276266500,-460.0,0.00022191,2]
[374341251,1753276266510,-226.66677,0.00022191,7]
[374341253,1753276266520,-460.0,0.00022191,2]
[374341255,1753276266530,-460.0,0.00022191,2]
[374341258,1753276266540,-571.91,0.00022191,2]
[374341260,1753276266549,-783.95,0.00022191,2]
[374341262,1753276266559,-703.02,0.00022191,2]
[374341264,1753276266570,-460.0,0.00022191,2]
[374341266,1753276266580,-323.73824741,0.00022191,2]
[374341268,1753276266590,-460.0,0.00022191,2]
[374341270,1753276266599,-4239.08,0.00022191,2]
[374341272,1753276266610,-518.96,0.00022191,2]
[374341274,1753276266623,-460.0,0.00022191,2]
[374341276,1753276266633,-1446.04,0.00022191,2]
[374341278,1753276266643,-519.04,0.00022191,2]
[374341280,1753276266653,-776.72,0.00022191,2]
[374341282,1753276266664,-460.0,0.00022191,2]
[374341284,1753276266674,-660.45,0.00022191,2]
[374341286,1753276266684,-460.0,0.00022191,2]
[374341288,1753276266694,-400.0,0.00022191,2]
[374341291,1753276266704,-739.8,0.00022191,2]
[374341293,1753276266716,-1210.15,0.00022191,2]
[374341295,1753276266726,-1075.16,0.00022191,2]
[374341296,1753276266736,-460.0,0.00022191,2]
[374341299,1753276266746,-460.0,0.00022191,2]
[374341301,1753276266757,-733.72,0.00022191,2]
[374341303,1753276266766,-4945.02,0.00022191,2]
[374341305,1753276266776,-460.0,0.00022191,2]
[374341306,1753276266785,-460.0,0.00022191,2]
[374341308,1753276266795,-849.9,0.00022191,2]
[374341311,1753276266805,-460.0,0.00022191,2]
[374341313,1753276266815,-3080.49,0.00022191,2]
[374341315,1753276266826,-460.0,0.00022191,2]
[374341317,1753276266835,-494.89,0.00022191,2]
[374341319,1753276266846,-743.28,0.00022191,2]
[374341321,1753276266856,-3893.82,0.00022191,2]
[374341323,1753276266865,-633.21,0.00022191,2]
[374341325,1753276266875,-718.66,0.00022191,2]
[374341327,1753276266886,-2569.44,0.00022191,2]
[374341329,1753276266897,-623.14,0.00022191,2]
[374341331,1753276266910,-702.02,0.00022191,2]
[374341333,1753276266921,-686.41,0.00022191,2]
[374341335,1753276266932,-1323.49,0.00022191,2]
[374341337,1753276266943,-540.06,0.00022191,2]
[374341339,1753276266955,-460.0,0.00022191,2]
[374341341,1753276266965,-14539.89,0.00022191,2]
[374341343,1753276266974,-1058.059424,0.00022191,7]
[374341345,1753276266985,-1058.059424,0.00022191,7]
[374341347,1753276266995,-460.0,0.00022191,2]
[374341349,1753276267005,-272.0,0.00022192,7]
[374341351,1753276267015,-3432.7107726,0.00022294,2]
[374341353,1753276267026,-219.19143745,0.00022298,2]
[374341355,1753276267035,-25000.0,0.00022298,2]
[374341357,1753276267046,-792.20608088,0.00022385,2]
[374341359,1753276267055,-250.0,0.00022389,2]
[374341361,1753276267065,-5284.9,0.00022434,5]
[374341363,1753276267075,-1819.64963379,0.0002246,2]
[374341365,1753276267085,-316.3,0.00022465,2]
[374341367,1753276267095,-6770.1,0.00022465,2]
[374341369,1753276267105,-460.0,0.00022465,2]
[374341371,1753276267115,-460.0,0.00022465,2]
[374341373,1753276267124,-718.85,0.00022465,2]
[374341375,1753276267134,-242.61563436,0.00022465,2]
[374341377,1753276267143,-1759.05,0.00022465,2]
[374341379,1753276267153,-460.0,0.00022465,2]
[374341381,1753276267163,-515.91,0.00022465,2]
[374341383,1753276267173,-460.0,0.00022465,2]
[374341385,1753276267183,-460.0,0.00022465,2]
[374341387,1753276267192,-764.96,0.00022465,2]
[374341389,1753276267202,-151.0,0.00022465,7]
[374341391,1753276267214,-710.55,0.00022465,2]
[374341393,1753276267224,-460.0,0.00022465,2]
[374341396,1753276267234,-460.0,0.00022465,2]
[374341398,1753276267244,-460.0,0.00022465,2]
[374341400,1753276267254,-571.91,0.00022465,2]
[374341401,1753276267264,-783.95,0.00022465,2]
[374341404,1753276267274,-703.02,0.00022465,2]
[374341406,1753276267284,-460.0,0.00022465,2]
[374341408,1753276267294,-151.0,0.00022465,7]
[374341410,1753276267303,-151.0,0.00022465,7]
[374341412,1753276267317,-415.02,0.00022465,2]
[374341414,1753276267326,-4239.08,0.00022465,2]
[374341416,1753276267336,-518.96,0.00022465,2]
[374341418,1753276267346,-151.0,0.00022465,7]
[374341420,1753276267357,-1446.04,0.00022465,2]
[374341422,1753276267367,-519.04,0.00022465,2]
[374341424,1753276267378,-776.72,0.00022465,2]
[374341426,1753276267388,-460.0,0.00022465,2]
[374341428,1753276267399,-660.45,0.00022465,2]
[374341430,1753276267409,-739.8,0.00022465,2]
[374341432,1753276267419,-1210.15,0.00022465,2]
[374341434,1753276267429,-1075.16,0.00022465,2]
[374341436,1753276267438,-460.0,0.00022465,2]
[374341438,1753276267448,-460.0,0.00022465,2]
[374341440,1753276267458,-733.72,0.00022465,2]
[374341443,1753276267471,-4945.02,0.00022465,2]
[374341445,1753276267481,-460.0,0.00022465,2]
[374341446,1753276267491,-460.0,0.00022465,2]
[374341449,1753276267502,-849.9,0.00022465,2]
[374341451,1753276267512,-460.0,0.00022465,2]
[374341453,1753276267521,-3080.49,0.00022465,2]
[374341455,1753276267531,-460.0,0.00022465,2]
[374341457,1753276267542,-494.89,0.00022465,2]
[374341458,1753276267552,-743.28,0.00022465,2]
[374341459,1753276267562,-3893.82,0.00022465,2]
[374341460,1753276267572,-633.21,0.00022465,2]
[374341461,1753276267583,-718.66,0.00022465,2]
[374341462,1753276267595,-2569.44,0.00022465,2]
[374341463,1753276267605,-623.14,0.00022465,2]
[374341464,1753276267615,-702.02,0.00022465,2]
[374341465,1753276267626,-686.41,0.00022465,2]
[374341466,1753276267636,-1323.49,0.00022465,2]
[374341467,1753276267646,-2452.91,0.00022465,2]
[374341468,1753276267657,-540.06,0.00022465,2]
[374341469,1753276267668,-405.712595,0.00022465,7]
[374341470,1753276267677,-460.0,0.00022465,2]
[374341471,1753276267687,-14539.89,0.00022465,2]
[374341472,1753276267696,-405.712595,0.00022465,7]
[374341473,1753276267706,-460.0,0.00022465,2]
[374341474,1753276267719,-3432.7107726,0.00022479,2]
[374341475,1753276267729,-151.0,0.000225,10]
[374341476,1753276267739,-246.961842,0.00022506,7]
[374341477,1753276267748,-246.961842,0.00022506,7]
[374341478,1753276267759,-151.0,0.00022506,7]
[374341479,1753276267768,-151.0,0.00022506,7]
[374341480,1753276267779,-500.0,0.00022521,2]
[374341481,1753276267789,-1000.0,0.00022521,2]
[374341482,1753276267799,-1000.0,0.00022521,2]
[374341483,1753276267809,-1001.10459567,0.00022521,2]
[374341485,1753276267819,-1000.0,0.00022521,2]
[374341488,1753276267830,-501.48761306,0.00022521,2]
[374341489,1753276267841,-500.0,0.00022521,2]
[374341491,1753276267852,-1000.0,0.00022521,2]
[374341494,1753276267862,-500.0,0.00022521,2]
[374341495,1753276267873,-1004.19548328,0.00022521,2]
[374341497,1753276267883,-1000.0,0.00022521,2]
[374341500,1753276267892,-1000.0,0.00022521,2]
[374341501,1753276267904,-1000.0,0.00022521,2]
[374341503,1753276267915,-1000.0,0.00022521,2]
[374341506,1753276267925,-1000.0,0.00022521,2]
[374341508,1753276267936,-223.0315306,0.00022571,2]
[374341509,1753276267948,-511.07,0.0002258,5]
[374341511,1753276267957,-4863.4,0.0002258,5]
[374341513,1753276267971,-501.383526,0.00022603,2]
[374341515,1753276267981,-660.0,0.00022643,2]
[374341517,1753276267991,-511.07,0.0002268,6]
[374341519,1753276268000,-4863.4,0.0002268,2]
[374341521,1753276268010,-166.1,0.00022739,7]
[374341523,1753276268019,-166.1,0.00022739,7]
[374341525,1753276268029,-698.106354,0.00022739,7]
[374341527,1753276268039,-698.106354,0.00022739,7]
[374341529,1753276268048,-151.0,0.00022739,7]
[374341531,1753276268058,-151.0,0.00022739,7]
[374341533,1753276268067,-6770.1,0.00022739,2]
[374341535,1753276268078,-460.0,0.00022739,2]
[374341537,1753276268088,-460.0,0.00022739,2]
[374341555,1753276268249,-718.85,0.00022739,2]
[374341557,1753276268259,-1759.05,0.00022739,2]
[374341559,1753276268269,-151.0,0.00022739,7]
[374341561,1753276268279,-460.0,0.00022739,2]
[374341563,1753276268288,-515.91,0.00022739,2]
[374341565,1753276268298,-460.0,0.00022739,2]
[374341567,1753276268308,-151.0,0.00022739,7]
[374341569,1753276268318,-764.96,0.00022739,2]
[374341571,1753276268327,-710.55,0.00022739,2]
[374341573,1753276268336,-460.0,0.00022739,2]
[374341574,1753276268346,-460.0,0.00022739,2]
[374341576,1753276268356,-412.74,0.00022739,2]
[374341579,1753276268365,-571.91,0.00022739,2]
[374341580,1753276268375,-783.95,0.00022739,2]
[374341583,1753276268385,-703.02,0.00022739,2]
[374341585,1753276268395,-460.0,0.00022739,2]
[374341587,1753276268404,-4239.08,0.00022739,2]
[374341589,1753276268414,-518.96,0.00022739,2]
[374341591,1753276268424,-1446.04,0.00022739,2]
[374341592,1753276268434,-519.04,0.00022739,2]
[374341594,1753276268444,-776.72,0.00022739,2]
[374341596,1753276268454,-460.0,0.00022739,2]
[374341599,1753276268465,-660.45,0.00022739,2]
[374341601,1753276268475,-739.8,0.00022739,2]
[374341602,1753276268485,-1210.15,0.00022739,2]
[374341605,1753276268495,-1075.16,0.00022739,2]
[374341606,1753276268504,-460.0,0.00022739,2]
[374341608,1753276268514,-460.0,0.00022739,2]
[374341611,1753276268523,-733.72,0.00022739,2]
[374341613,1753276268533,-4945.02,0.00022739,2]
[374341615,1753276268542,-460.0,0.00022739,2]
[374341617,1753276268552,-460.0,0.00022739,2]
[374341618,1753276268562,-849.9,0.00022739,2]
[374341620,1753276268572,-460.0,0.00022739,2]
[374341622,1753276268582,-3080.49,0.00022739,2]
[374341624,1753276268592,-460.0,0.00022739,2]
[374341626,1753276268602,-494.89,0.00022739,2]
[374341628,1753276268612,-743.28,0.00022739,2]
[374341630,1753276268621,-3893.82,0.00022739,2]
[374341632,1753276268631,-633.21,0.00022739,2]
[374341634,1753276268641,-718.66,0.00022739,2]
[374341636,1753276268650,-2569.44,0.00022739,2]
[374341638,1753276268662,-623.14,0.00022739,2]
[374341640,1753276268671,-702.02,0.00022739,2]
[374341642,1753276268682,-686.41,0.00022739,2]
[374341644,1753276268692,-1323.49,0.00022739,2]
[374341646,1753276268702,-540.06,0.00022739,2]
[374341648,1753276268712,-14539.89,0.00022739,2]
[374341650,1753276268721,-460.0,0.00022739,2]
[374341652,1753276268731,-5284.9,0.00022767,6]
[374341654,1753276268740,-151.0,0.00022767,7]
[374341656,1753276268749,-151.0,0.00022767,7]
[374341658,1753276268760,-175.014685,0.00022767,7]
[374341660,1753276268770,-393.474539,0.0002277,2]
[374341662,1753276268780,-358.499025,0.0002277,2]
[374341664,1753276268789,-511.07,0.0002278,7]
[374341666,1753276268800,-4863.4,0.0002278,2]
[374341667,1753276268811,-168.0,0.00022782,2]
[374341669,1753276268820,-429.674968,0.00022818,2]
[374341671,1753276268829,-429.674968,0.00022818,2]
[374341673,1753276268838,-429.674968,0.00022818,2]
[374341675,1753276268847,-429.674968,0.00022818,2]
[374341677,1753276268856,-429.674968,0.00022818,2]
[374341679,1753276268866,-429.674968,0.00022818,2]
[374341681,1753276268875,-429.674968,0.00022818,2]
[374341683,1753276268884,-429.674968,0.00022818,2]
[374341685,1753276268894,-429.674968,0.00022818,2]
[374341687,1753276268909,-429.674968,0.00022818,2]
[374341689,1753276268920,-429.674968,0.00022818,2]
[374341691,1753276268929,-429.674968,0.00022818,2]
[374341693,1753276268940,-859.2070339,0.00022818,2]
[374341695,1753276268950,-429.674968,0.00022818,2]
[374341697,1753276268960,-862.5943168,0.00022818,2]
[374341699,1753276268969,-429.674968,0.00022818,2]
[374341701,1753276268979,-429.674968,0.00022818,2]
[374341703,1753276268989,-429.674968,0.00022818,2]
[374341705,1753276268998,-429.674968,0.00022818,2]
[374341707,1753276269007,-429.674968,0.00022818,2]
[374341708,1753276269016,-264.08826004,0.00022818,2]
[374341712,1753276269045,-165.58670796,0.00022818,2]
[374341714,1753276269055,-429.674968,0.00022818,2]
[374341716,1753276269063,-429.674968,0.00022818,2]
[374341718,1753276269073,-168.0,0.00022822,8]
[374341720,1753276269083,-57.06336624,0.00022846,2]
[374341726,1753276269131,-460.0,0.0002,2]
[374341728,1753276269141,-3175.09999999,0.00022846,2]
[374341744,1753276269295,-3298.6814778,0.00022846,2]
[374341746,1753276269306,-1923.7175572,0.00022846,2]
[374341749,1753276269317,-907.8920804,0.00022846,2]
[374341751,1753276269329,-1418.57700305,0.00022846,2]
[374341783,1753276269657,-1940.63,0.00019178,2]
[374341785,1753276269669,-368.1781707,0.00019178,2]
[374341786,1753276269678,-460.0,0.00019178,2]
[374341788,1753276269688,-1589.66,0.00019178,2]
[374341790,1753276269697,-460.0,0.00019178,2]
[374341792,1753276269706,-1940.63,0.00019452,2]
[374341794,1753276269716,-1589.66,0.00019452,2]
[374341796,1753276269725,-1940.63,0.00019726,2]
[374341798,1753276269735,-1201.61184162,0.00019726,2]
[374341814,1753276269890,-460.0,0.00019178,2]
[374341816,1753276269899,-460.0,0.00019452,2]
[374341818,1753276269912,-388.04815838,0.00019726,2]
[374341820,1753276269922,-1940.63,0.0002,2]
[374341822,1753276269932,-1589.66,0.0002,2]
[374341824,1753276269942,-460.0,0.00020273,2]
[374341826,1753276269952,-1940.63,0.00020273,2]
[374341828,1753276269962,-1589.66,0.00020273,2]
[374341830,1753276269974,-460.0,0.00020547,2]
[374341832,1753276269985,-1940.63,0.00020547,2]
[374341834,1753276269995,-1589.66,0.00020547,2]
[374341836,1753276270005,-460.0,0.00020821,2]
[374341838,1753276270014,-1940.63,0.00020821,2]
[374341840,1753276270023,-1589.66,0.00020821,2]
[374341842,1753276270036,-460.0,0.00021095,2]
[374341844,1753276270047,-1940.63,0.00021095,2]
[374341846,1753276270056,-1589.66,0.00021095,2]
[374341848,1753276270066,-500.0,0.00021202,2]
[374341850,1753276270076,-627.67361628,0.00021202,2]
[374341852,1753276270085,-175.014685,0.00021202,2]
[374341854,1753276270095,-1940.63,0.00021369,2]
[374341856,1753276270104,-1589.66,0.00021369,2]
[374341858,1753276270113,-1940.63,0.00021643,2]
[374341860,1753276270122,-1589.66,0.00021643,2]
[374341862,1753276270132,-1940.63,0.00021917,2]
[374341864,1753276270142,-175.014685,0.00022,7]
[374341866,1753276270151,-1940.63,0.00022191,2]
[374341868,1753276270160,-1940.63,0.00022465,2]
[374341870,1753276270170,-1940.63,0.00022739,2]
[374341872,1753276270179,-175.014685,0.00022767,7]
[374341874,1753276270188,-14218.96851532,0.00022846,2]
[374341876,1753276270198,-393.474539,0.0002287,6]
[374341877,1753276270207,-511.09,0.0002288,6]
[374341879,1753276270219,-4863.426775,0.0002288,3]
[374341881,1753276270228,-153.0,0.00022904,2]
[374341883,1753276270238,-800.0,0.00022908,2]
[374341885,1753276270250,-151.0,0.00022928,7]
[374341887,1753276270259,-151.0,0.00022928,7]
[374341889,1753276270268,-166.1,0.00022929,7]
[374341891,1753276270278,-166.1,0.00022929,7]
[374341893,1753276270287,-698.106354,0.00022929,7]
[374341894,1753276270298,-151.0,0.00022929,7]
[374341895,1753276270307,-698.106354,0.00022929,7]
[374341896,1753276270316,-246.961842,0.00022929,7]
[374341897,1753276270325,-246.961842,0.00022929,7]
[374341898,1753276270335,-151.0,0.00022929,7]
[374341899,1753276270344,-151.0,0.00022929,7]
[374341900,1753276270353,-151.0,0.00022929,7]
[374341901,1753276270363,-151.0,0.00022929,7]
[374341902,1753276270373,-1089.52480594,0.00022929,2]
[374341903,1753276270382,-4353.74112454,0.00022929,2]
[374341905,1753276270392,-303.74147,0.00022931,8]
[374341907,1753276270401,-151.0,0.00022938,7]
[374341909,1753276270411,-447.903309,0.00022938,7]
[374341911,1753276270420,-447.903309,0.00022938,7]
[374341913,1753276270429,-151.0,0.00022938,7]
[374341915,1753276270439,-151.0,0.00022973,7]
[374341917,1753276270448,-151.0,0.00022973,7]
[374341919,1753276270457,-5999.999999,0.0002298,2]
[374341921,1753276270469,-444.8130988,0.00022984,2]
[374341923,1753276270479,-178.2325116,0.00022984,2]
[374341925,1753276270488,-178.2325116,0.00022984,2]
[374341927,1753276270498,-178.2325116,0.00022984,2]
[374341929,1753276270508,-159.9205653,0.00022984,2]
[374341931,1753276270518,-159.9205653,0.00022984,2]
[374341933,1753276270528,-159.9205653,0.00022984,2]
[374341935,1753276270538,-3432.7107726,0.00022987,2]
[374341937,1753276270547,-2276.0,0.00022991,2]
[374341939,1753276270557,-151.0,0.00023,5]
[374341941,1753276270567,-160.0,0.00023,7]
[374341943,1753276270576,-160.0,0.00023,2]
[374341945,1753276270586,-6770.1,0.00023013,2]
[374341947,1753276270595,-535.71956193,0.00023013,2]
[374341949,1753276270605,-151.0,0.00023013,7]
[374341951,1753276270615,-151.0,0.00023013,7]
[374341953,1753276270625,-151.0,0.00023013,7]
[374341955,1753276270634,-460.0,0.00023013,2]
[374341957,1753276270644,-151.0,0.00023013,7]
[374341959,1753276270654,-718.85,0.00023013,2]
[374341961,1753276270663,-151.0,0.00023013,7]
[374341963,1753276270673,-1759.05,0.00023013,2]
[374341965,1753276270682,-460.0,0.00023013,2]
[374341967,1753276270692,-515.91,0.00023013,2]
[374341969,1753276270702,-460.0,0.00023013,2]
[374341971,1753276270711,-764.96,0.00023013,2]
[374341973,1753276270726,-226.66677,0.00023013,7]
[374341975,1753276270735,-710.55,0.00023013,2]
[374341977,1753276270743,-460.0,0.00023013,2]
[374341979,1753276270754,-226.66677,0.00023013,7]
[374341981,1753276270763,-267.31435184,0.00023013,2]
[374341983,1753276270773,-571.91,0.00023013,2]
[374341985,1753276270782,-783.95,0.00023013,2]
[374341987,1753276270792,-703.02,0.00023013,2]
[374341989,1753276270802,-460.0,0.00023013,2]
[374341991,1753276270811,-518.96,0.00023013,2]
[374341993,1753276270821,-1446.04,0.00023013,2]
[374341995,1753276270830,-519.04,0.00023013,2]
[374341997,1753276270841,-776.72,0.00023013,2]
[374341999,1753276270850,-460.0,0.00023013,2]
[374342001,1753276270860,-660.45,0.00023013,2]
[374342003,1753276270869,-739.8,0.00023013,2]
[374342005,1753276270879,-1210.15,0.00023013,2]
[374342007,1753276270888,-1075.16,0.00023013,2]
[374342009,1753276270898,-460.0,0.00023013,2]
[374342011,1753276270912,-460.0,0.00023013,2]
[374342013,1753276270921,-733.72,0.00023013,2]
[374342015,1753276270930,-949.90881737,0.00023013,2]
[374343320,1753276785485,151.30267998,0.00023,30]
[374343321,1753276867232,449.876196,0.00013699,2]
[374343323,1753276994371,-24781.0,0.00017567,2]
[374343326,1753277151093,-119.0,0.00017567,2]
[374343327,1753277151115,-172.59,0.00018464,2]
[374343328,1753277151136,-300.0,0.00018563,2]
[374343329,1753277151167,-500.0,0.00018564,2]
[374343330,1753277151188,-295.0164093,0.00018564,2]
[374343331,1753277151213,-88.55820736,0.00018564,2]
[374343341,1753277228083,-263.08380118,0.00018563,2]
[374343342,1753277234240,-256.2080443,0.00018563,2]
[374343355,1753277320959,150.9999992,0.0002,120]
[374343363,1753277370254,-695.53345327,0.00018463,2]
[374343423,1753277432500,-626.9454818,0.00018562,2]
[374343425,1753277432510,-680.70815452,0.00018563,2]
[374343427,1753277432520,-166.12135493,0.00018568,2]
[374343429,1753277432529,-36891.79932785,0.00018568,2]
[374343431,1753277432539,-500.0,0.00019166,2]
[374343432,1753277432549,-216.45904026,0.00019166,2]
[374343435,1753277432558,-895.61,0.00019168,3]
[374343437,1753277432567,-447.8,0.00019168,3]
[374343440,1753277432576,-223.9,0.00019168,3]
[374343443,1753277432586,-671.75,0.00019168,3]
[374343446,1753277432596,-500.69756271,0.00019173,2]
[374343447,1753277432605,-500.0,0.00019173,2]
[374343448,1753277432614,-500.0,0.00019173,2]
[374343449,1753277432623,-352.99270692,0.00019177,2]
[374343450,1753277432633,-460.0,0.00019178,2]
[374343451,1753277432642,-460.0,0.00019178,2]
[374343452,1753277432652,-460.0,0.00019178,2]
[374343454,1753277432661,-500.0,0.00019178,2]
[374343456,1753277432671,-500.0,0.00019178,2]
[374343457,1753277432680,-460.0,0.00019178,2]
[374343458,1753277432690,-460.0,0.00019178,2]
[374343459,1753277432704,-460.0,0.00019178,2]
[374343460,1753277432714,-460.0,0.00019178,2]
[374343461,1753277432723,-460.0,0.00019178,2]
[374343462,1753277432733,-296.08122966,0.00019178,2]
[374343463,1753277432743,-460.0,0.00019178,2]
[374343464,1753277432752,-451.81564048,0.00019178,2]
[374343465,1753277432761,-460.0,0.00019178,2]
[374343466,1753277432771,-460.0,0.00019178,2]
[374343467,1753277432780,-460.0,0.00019178,2]
[374343468,1753277432790,-460.0,0.00019178,2]
[374343469,1753277432799,-460.0,0.00019178,2]
[374343470,1753277432809,-536.92949671,0.00019178,2]
[374343471,1753277432818,-460.0,0.00019178,2]
[374343472,1753277432827,-460.0,0.00019178,2]
[374343473,1753277432837,-466.44568702,0.00019178,2]
[374343474,1753277432846,-460.0,0.00019178,2]
[374343475,1753277432855,-460.4630845,0.00019178,2]
[374343476,1753277432865,-174.95831635,0.00019178,2]
[374343477,1753277432875,-6058.28,0.00019178,2]
[374343478,1753277432884,-513.28564777,0.00019178,2]
[374343479,1753277432893,-460.48221794,0.00019178,2]
[374343480,1753277432903,-460.0,0.00019178,2]